[Event "*** Titled Tuesday Blitz"]
[Site "Chess.com"]
[Date "2021.04.20"]
[Round "8"]
[White "Indianlad"]
[Black "vugarrasulov"]
[Result "1/2-1/2"]
[WhiteElo "2925"]
[BlackElo "2846"]
[TimeControl "180+1"]
[EndTime "11:28:51 PDT"]
[Termination "Game drawn by stalemate"]

1. c4 {[%clk 0:03:00.5]} 1... Nf6 {[%clk 0:03:00.1]} 2. Nc3 {[%clk 0:03:00.4]}
2... g6 {[%clk 0:02:59.1]} 3. g3 {[%clk 0:02:59.9]} 3... Bg7 {[%clk 0:02:59.5]}
4. Bg2 {[%clk 0:03:00.4]} 4... O-O {[%clk 0:03:00.1]} 5. Nf3 {[%clk 0:03:00.3]}
5... d6 {[%clk 0:03:00.2]} 6. O-O {[%clk 0:03:00.3]} 6... Nc6 {[%clk 0:02:59.5]}
7. d3 {[%clk 0:03:00.1]} 7... e5 {[%clk 0:02:56.4]} 8. Rb1 {[%clk 0:02:58.4]}
8... a5 {[%clk 0:02:54.5]} 9. a3 {[%clk 0:02:57.9]} 9... Re8 {[%clk 0:02:54.8]}
10. Bg5 {[%clk 0:02:57.3]} 10... h6 {[%clk 0:02:52.6]} 11. Bxf6 {[%clk
0:02:57.3]} 11... Bxf6 {[%clk 0:02:53.5]} 12. b4 {[%clk 0:02:56.8]} 12... axb4
{[%clk 0:02:54.4]} 13. axb4 {[%clk 0:02:57]} 13... Bg7 {[%clk 0:02:55]} 14. e3
{[%clk 0:02:41.5]} 14... Be6 {[%clk 0:02:47]} 15. Nd2 {[%clk 0:02:40.6]} 15...
e4 {[%clk 0:02:37.5]} 16. d4 {[%clk 0:02:14.9]} 16... f5 {[%clk 0:02:37.3]} 17.
Qc2 {[%clk 0:02:12.5]} 17... Bf7 {[%clk 0:02:36]} 18. b5 {[%clk 0:02:11.8]}
18... Ne7 {[%clk 0:02:35.6]} 19. Ra1 {[%clk 0:02:10.4]} 19... Qd7 {[%clk
0:02:32.8]} 20. Ne2 {[%clk 0:02:06.7]} 20... c5 {[%clk 0:02:29.5]} 21. bxc6
{[%clk 0:02:02.8]} 21... bxc6 {[%clk 0:02:30.4]} 22. Rxa8 {[%clk 0:02:01.8]}
22... Rxa8 {[%clk 0:02:30]} 23. h4 {[%clk 0:02:02.1]} 23... c5 {[%clk
0:02:25.1]} 24. Rb1 {[%clk 0:01:47.9]} 24... cxd4 {[%clk 0:02:18.6]} 25. Nxd4
{[%clk 0:01:47.8]} 25... Nc6 {[%clk 0:02:17.9]} 26. Nb5 {[%clk 0:01:23.1]} 26...
Ne5 {[%clk 0:02:11.9]} 27. Qb3 {[%clk 0:01:17]} 27... Rc8 {[%clk 0:02:08.7]} 28.
Bf1 {[%clk 0:01:17]} 28... g5 {[%clk 0:01:55.9]} 29. hxg5 {[%clk 0:01:16.3]}
29... hxg5 {[%clk 0:01:56.8]} 30. Qb4 {[%clk 0:01:15.7]} 30... Bf8 {[%clk
0:01:53.1]} 31. Rd1 {[%clk 0:01:15.8]} 31... d5 {[%clk 0:01:45.6]} 32. Qb1
{[%clk 0:01:14.6]} 32... dxc4 {[%clk 0:01:33.8]} 33. Nxc4 {[%clk 0:01:11.7]}
33... Nf3+ {[%clk 0:01:31.8]} 34. Kg2 {[%clk 0:01:12]} 34... Qc6 {[%clk
0:01:27.4]} 35. Nbd6 {[%clk 0:01:09.6]} 35... Bxd6 {[%clk 0:01:20.9]} 36. Nxd6
{[%clk 0:01:09.8]} 36... Ne1+ {[%clk 0:00:44.6]} 37. Rxe1 {[%clk 0:01:02.6]}
37... Qxd6 {[%clk 0:00:44.3]} 38. Rd1 {[%clk 0:01:03.1]} 38... Qe5 {[%clk
0:00:40.8]} 39. Qb7 {[%clk 0:00:55]} 39... Rf8 {[%clk 0:00:41.2]} 40. Qc6 {[%clk
0:00:51.9]} 40... Kg7 {[%clk 0:00:38.6]} 41. Bc4 {[%clk 0:00:49.9]} 41... f4
{[%clk 0:00:31.1]} 42. Bxf7 {[%clk 0:00:22.7]} 42... Rxf7 {[%clk 0:00:28.3]} 43.
Rd5 {[%clk 0:00:16.7]} 43... f3+ {[%clk 0:00:16.5]} 44. Kh3 {[%clk 0:00:17.2]}
44... Qf6 {[%clk 0:00:13]} 45. Qxf6+ {[%clk 0:00:16.1]} 45... Kxf6 {[%clk
0:00:13.9]} 46. Kg4 {[%clk 0:00:16.5]} 46... Ra7 {[%clk 0:00:09.7]} 47. Rxg5
{[%clk 0:00:12.2]} 47... Ra2 {[%clk 0:00:09.9]} 48. Rf5+ {[%clk 0:00:12.1]}
48... Ke6 {[%clk 0:00:10.4]} 49. Kf4 {[%clk 0:00:12.6]} 49... Rxf2 {[%clk
0:00:09.9]} 50. Kxe4 {[%clk 0:00:12.4]} 50... Ra2 {[%clk 0:00:08.8]} 51. Rxf3
{[%clk 0:00:12.8]} 51... Ra4+ {[%clk 0:00:09.1]} 52. Kd3 {[%clk 0:00:13.4]}
52... Ra3+ {[%clk 0:00:09.2]} 53. Ke2 {[%clk 0:00:13.1]} 53... Ke5 {[%clk
0:00:08.4]} 54. Rf4 {[%clk 0:00:13.4]} 54... Ra1 {[%clk 0:00:07.4]} 55. Kf2
{[%clk 0:00:10.1]} 55... Ra2+ {[%clk 0:00:06.9]} 56. Kf3 {[%clk 0:00:10.3]}
56... Ra1 {[%clk 0:00:07.8]} 57. Rb4 {[%clk 0:00:10.5]} 57... Rf1+ {[%clk
0:00:07.5]} 58. Kg4 {[%clk 0:00:10.8]} 58... Rf8 {[%clk 0:00:06.9]} 59. Rf4
{[%clk 0:00:09.6]} 59... Rg8+ {[%clk 0:00:07.1]} 60. Kf3 {[%clk 0:00:10.3]}
60... Rh8 {[%clk 0:00:07.8]} 61. g4 {[%clk 0:00:10]} 61... Rh3+ {[%clk
0:00:07.5]} 62. Ke2 {[%clk 0:00:10.6]} 62... Rh1 {[%clk 0:00:07.4]} 63. Ra4
{[%clk 0:00:06.2]} 63... Rb1 {[%clk 0:00:06.9]} 64. Kf2 {[%clk 0:00:05.5]} 64...
Rb3 {[%clk 0:00:05.2]} 65. Kf3 {[%clk 0:00:05.3]} 65... Rb1 {[%clk 0:00:05.3]}
66. Ra5+ {[%clk 0:00:05.5]} 66... Kf6 {[%clk 0:00:05.8]} 67. g5+ {[%clk
0:00:05.7]} 67... Kg6 {[%clk 0:00:05.7]} 68. e4 {[%clk 0:00:06.1]} 68... Rf1+
{[%clk 0:00:04.8]} 69. Ke3 {[%clk 0:00:06.7]} 69... Re1+ {[%clk 0:00:04.3]} 70.
Kf4 {[%clk 0:00:07.2]} 70... Rf1+ {[%clk 0:00:04.7]} 71. Ke5 {[%clk 0:00:06]}
71... Kxg5 {[%clk 0:00:04.8]} 72. Ra6 {[%clk 0:00:05.8]} 72... Rf8 {[%clk
0:00:04.3]} 73. Kd5 {[%clk 0:00:03.6]} 73... Kf4 {[%clk 0:00:03.7]} 74. e5
{[%clk 0:00:02.9]} 74... Kf5 {[%clk 0:00:03.7]} 75. e6 {[%clk 0:00:02.6]} 75...
Kf6 {[%clk 0:00:03.7]} 76. Ra7 {[%clk 0:00:03.1]} 76... Rd8+ {[%clk 0:00:03.6]}
77. Rd7 {[%clk 0:00:03.4]} 77... Rxd7+ {[%clk 0:00:04.1]} 78. exd7 {[%clk
0:00:04.3]} 78... Ke7 {[%clk 0:00:05]} 79. Kc6 {[%clk 0:00:05]} 79... Kd8 {[%clk
0:00:05.7]} 80. Kd6 {[%clk 0:00:05.9]} 1/2-1/2

[Event "*** Titled Tuesday Blitz"]
[Site "Chess.com"]
[Date "2021.04.20"]
[Round "8"]
[White "ChessQueen"]
[Black "Mikasinski"]
[Result "1/2-1/2"]
[WhiteElo "2695"]
[BlackElo "2521"]
[TimeControl "180+1"]
[EndTime "11:28:51 PDT"]
[Termination "Game drawn - insufficient material"]

1. e4 {[%clk 0:03:00.9]} 1... c5 {[%clk 0:02:59.9]} 2. c3 {[%clk 0:02:59.8]}
2... Nf6 {[%clk 0:02:56.5]} 3. e5 {[%clk 0:03:00.1]} 3... Nd5 {[%clk 0:02:57]}
4. d4 {[%clk 0:03:00.8]} 4... cxd4 {[%clk 0:02:57.5]} 5. Nf3 {[%clk 0:03:01.5]}
5... e6 {[%clk 0:02:57.9]} 6. cxd4 {[%clk 0:03:01.5]} 6... d6 {[%clk 0:02:58.5]}
7. Bc4 {[%clk 0:03:02]} 7... Nc6 {[%clk 0:02:58.1]} 8. O-O {[%clk 0:03:01.7]}
8... Be7 {[%clk 0:02:57.2]} 9. Qe2 {[%clk 0:03:02.1]} 9... O-O {[%clk 0:02:57]}
10. Rd1 {[%clk 0:03:01.7]} 10... Na5 {[%clk 0:02:55]} 11. Bd3 {[%clk 0:02:55.8]}
11... Nb4 {[%clk 0:02:54.6]} 12. Be4 {[%clk 0:02:56.3]} 12... d5 {[%clk
0:02:54.5]} 13. Bc2 {[%clk 0:02:48.8]} 13... Nxc2 {[%clk 0:02:54.5]} 14. Qxc2
{[%clk 0:02:49]} 14... Bd7 {[%clk 0:02:51.8]} 15. Nc3 {[%clk 0:02:48.6]} 15...
Rc8 {[%clk 0:02:51.6]} 16. Qe2 {[%clk 0:02:47]} 16... a6 {[%clk 0:02:49.6]} 17.
h4 {[%clk 0:02:45]} 17... Bxh4 {[%clk 0:02:40.4]} 18. g3 {[%clk 0:02:39.5]}
18... Be7 {[%clk 0:02:39.9]} 19. Kg2 {[%clk 0:02:39.7]} 19... f5 {[%clk
0:02:36.3]} 20. exf6 {[%clk 0:02:37.5]} 20... Bxf6 {[%clk 0:02:33.4]} 21. Bf4
{[%clk 0:02:36.8]} 21... Nc6 {[%clk 0:02:25.9]} 22. Rd2 {[%clk 0:02:30]} 22...
Rf7 {[%clk 0:02:17.8]} 23. Rh1 {[%clk 0:02:29.1]} 23... Qf8 {[%clk 0:01:55.7]}
24. Qd3 {[%clk 0:02:22.1]} 24... g6 {[%clk 0:01:52.1]} 25. a3 {[%clk 0:02:10.6]}
25... Re8 {[%clk 0:01:36.5]} 26. Bh6 {[%clk 0:02:09.3]} 26... Bg7 {[%clk
0:01:34.2]} 27. Bxg7 {[%clk 0:02:07.3]} 27... Rxg7 {[%clk 0:01:32.9]} 28. Re2
{[%clk 0:01:58.4]} 28... Qf5 {[%clk 0:01:28]} 29. Qe3 {[%clk 0:01:47.6]} 29...
Rf8 {[%clk 0:01:27]} 30. Rh4 {[%clk 0:01:47.6]} 30... g5 {[%clk 0:01:00.4]} 31.
Rh5 {[%clk 0:01:44.3]} 31... Qg4 {[%clk 0:00:36.8]} 32. Rxg5 {[%clk 0:01:11]}
32... Rxg5 {[%clk 0:00:36.5]} 33. Nxg5 {[%clk 0:01:11]} 33... Nxd4 {[%clk
0:00:36.5]} 34. f3 {[%clk 0:01:02.5]} 34... Qf5 {[%clk 0:00:18.1]} 35. Qxd4
{[%clk 0:01:02.6]} 35... Qxg5 {[%clk 0:00:18.1]} 36. Re5 {[%clk 0:01:03.2]}
36... Qg6 {[%clk 0:00:16.5]} 37. f4 {[%clk 0:00:59.7]} 37... Rf5 {[%clk
0:00:16]} 38. Qb6 {[%clk 0:00:32]} 38... Rxe5 {[%clk 0:00:15.3]} 39. fxe5 {[%clk
0:00:32.5]} 39... Bc6 {[%clk 0:00:11.7]} 40. Qd8+ {[%clk 0:00:31.3]} 40... Kg7
{[%clk 0:00:11.9]} 41. Qe7+ {[%clk 0:00:30.7]} 41... Qf7 {[%clk 0:00:11.9]} 42.
Qg5+ {[%clk 0:00:30.3]} 42... Kf8 {[%clk 0:00:11.1]} 43. Qd8+ {[%clk 0:00:30.1]}
43... Be8 {[%clk 0:00:06.5]} 44. Ne2 {[%clk 0:00:27]} 44... Qe7 {[%clk
0:00:04.5]} 45. Qb8 {[%clk 0:00:24.1]} 45... Qc5 {[%clk 0:00:01.9]} 46. Nf4
{[%clk 0:00:21.5]} 46... Qc6 {[%clk 0:00:01.4]} 47. Kh3 {[%clk 0:00:18.1]} 47...
Ke7 {[%clk 0:00:01.9]} 48. Qa7 {[%clk 0:00:14.7]} 48... Qc7 {[%clk 0:00:02.2]}
49. Qd4 {[%clk 0:00:14.5]} 49... Bf7 {[%clk 0:00:02]} 50. Qb4+ {[%clk
0:00:14.3]} 50... Ke8 {[%clk 0:00:01.7]} 51. Qd4 {[%clk 0:00:13.8]} 51... Qe7
{[%clk 0:00:01.9]} 52. Qb6 {[%clk 0:00:13.1]} 52... Qg5 {[%clk 0:00:01.4]} 53.
Qd6 {[%clk 0:00:10.6]} 53... Qf5+ {[%clk 0:00:01.4]} 54. Kh4 {[%clk 0:00:09]}
54... Qe4 {[%clk 0:00:01.9]} 55. Qb8+ {[%clk 0:00:07.9]} 55... Ke7 {[%clk
0:00:02.2]} 56. Qxb7+ {[%clk 0:00:08.5]} 56... Kf8 {[%clk 0:00:02.7]} 57. Qb4+
{[%clk 0:00:08.7]} 57... Kg7 {[%clk 0:00:03.2]} 58. Qxe4 {[%clk 0:00:08.5]}
58... dxe4 {[%clk 0:00:04.1]} 59. Kh3 {[%clk 0:00:08.6]} 59... Bg6 {[%clk
0:00:04.4]} 60. Kg2 {[%clk 0:00:08.6]} 60... Bf5 {[%clk 0:00:04.6]} 61. Kf2
{[%clk 0:00:08.7]} 61... Kh6 {[%clk 0:00:05.3]} 62. Ke3 {[%clk 0:00:09.2]} 62...
Kg5 {[%clk 0:00:05.9]} 63. Ne2 {[%clk 0:00:08.3]} 63... Kg4 {[%clk 0:00:06.2]}
64. b4 {[%clk 0:00:08.9]} 64... h5 {[%clk 0:00:06.6]} 65. a4 {[%clk 0:00:09.3]}
65... Bg6 {[%clk 0:00:06.7]} 66. b5 {[%clk 0:00:09.1]} 66... axb5 {[%clk
0:00:07.3]} 67. axb5 {[%clk 0:00:10]} 67... Be8 {[%clk 0:00:06]} 68. b6 {[%clk
0:00:10.6]} 68... Bc6 {[%clk 0:00:06.2]} 69. Nf4 {[%clk 0:00:11.2]} 69... Kf5
{[%clk 0:00:06]} 70. Nxh5 {[%clk 0:00:11.3]} 70... Kxe5 {[%clk 0:00:06.7]} 71.
g4 {[%clk 0:00:11.2]} 71... Bb7 {[%clk 0:00:06.1]} 72. Ng3 {[%clk 0:00:09.3]}
72... Bc6 {[%clk 0:00:04.6]} 73. g5 {[%clk 0:00:08.8]} 73... Bb7 {[%clk
0:00:04.9]} 74. g6 {[%clk 0:00:06.6]} 74... Kf6 {[%clk 0:00:05.2]} 75. Nxe4+
{[%clk 0:00:07.5]} 75... Kxg6 {[%clk 0:00:04.9]} 76. Kd4 {[%clk 0:00:07.6]}
76... Kg7 {[%clk 0:00:02.4]} 77. Ke5 {[%clk 0:00:07.7]} 77... Kf8 {[%clk
0:00:01.8]} 78. Nd6 {[%clk 0:00:07.7]} 78... Bd5 {[%clk 0:00:01.9]} 79. Nb5
{[%clk 0:00:07.8]} 79... Ke7 {[%clk 0:00:01.7]} 80. Nc7 {[%clk 0:00:07.6]} 80...
Bb7 {[%clk 0:00:02.3]} 81. Nxe6 {[%clk 0:00:07.8]} 81... Kd7 {[%clk 0:00:02.9]}
82. Nc5+ {[%clk 0:00:08.1]} 82... Kc6 {[%clk 0:00:03.5]} 83. Nxb7 {[%clk
0:00:08.7]} 83... Kxb6 {[%clk 0:00:04.1]} 1/2-1/2

[Event "*** Titled Tuesday Blitz"]
[Site "Chess.com"]
[Date "2021.04.20"]
[Round "8"]
[White "GregShahade"]
[Black "DamianoLew95"]
[Result "1/2-1/2"]
[WhiteElo "2694"]
[BlackElo "2519"]
[TimeControl "180+1"]
[EndTime "11:28:52 PDT"]
[Termination "Game drawn - insufficient material"]

1. e4 {[%clk 0:03:00.9]} 1... c5 {[%clk 0:02:59.6]} 2. Nf3 {[%clk 0:03:01.1]}
2... d6 {[%clk 0:02:59.1]} 3. d4 {[%clk 0:03:01.1]} 3... cxd4 {[%clk 0:03:00]}
4. Nxd4 {[%clk 0:03:01.6]} 4... Nf6 {[%clk 0:03:00.3]} 5. Nc3 {[%clk 0:03:01.9]}
5... Bd7 {[%clk 0:02:59]} 6. Be2 {[%clk 0:03:00.5]} 6... e5 {[%clk 0:02:58.5]}
7. Nb3 {[%clk 0:02:59.8]} 7... Bc6 {[%clk 0:02:59]} 8. Bg5 {[%clk 0:02:51.8]}
8... Nbd7 {[%clk 0:02:55.6]} 9. O-O {[%clk 0:02:39.9]} 9... h6 {[%clk 0:02:53]}
10. Bh4 {[%clk 0:02:40.2]} 10... g5 {[%clk 0:02:47.8]} 11. Bg3 {[%clk
0:02:40.4]} 11... Nxe4 {[%clk 0:02:42.9]} 12. Nxe4 {[%clk 0:02:36.9]} 12... Bxe4
{[%clk 0:02:42.5]} 13. Bf3 {[%clk 0:02:35.3]} 13... Bxf3 {[%clk 0:02:37.1]} 14.
Qxf3 {[%clk 0:02:36.2]} 14... Qb6 {[%clk 0:02:31]} 15. Rfe1 {[%clk 0:02:24.2]}
15... Be7 {[%clk 0:02:27.8]} 16. Qf5 {[%clk 0:02:21.1]} 16... h5 {[%clk
0:02:00.8]} 17. h3 {[%clk 0:02:04.4]} 17... Rh6 {[%clk 0:01:54.8]} 18. Re2
{[%clk 0:01:45.7]} 18... Nf8 {[%clk 0:01:10.2]} 19. Rd1 {[%clk 0:01:23.9]} 19...
Ne6 {[%clk 0:01:08.5]} 20. c3 {[%clk 0:01:19.7]} 20... Qa6 {[%clk 0:01:01.8]}
21. Nc1 {[%clk 0:01:14.4]} 21... h4 {[%clk 0:00:54.3]} 22. Bh2 {[%clk
0:01:12.6]} 22... Rf6 {[%clk 0:00:54.1]} 23. Qg4 {[%clk 0:01:02.4]} 23... Rc8
{[%clk 0:00:32.4]} 24. Red2 {[%clk 0:00:57.2]} 24... Kf8 {[%clk 0:00:24.1]} 25.
a3 {[%clk 0:00:52.8]} 25... Kg7 {[%clk 0:00:23.7]} 26. Nd3 {[%clk 0:00:52.9]}
26... Qc4 {[%clk 0:00:23]} 27. Qxc4 {[%clk 0:00:37.1]} 27... Rxc4 {[%clk
0:00:23.9]} 28. Nb4 {[%clk 0:00:37.8]} 28... Nc7 {[%clk 0:00:23.5]} 29. Nc2
{[%clk 0:00:33.1]} 29... Rc6 {[%clk 0:00:22.2]} 30. Ne3 {[%clk 0:00:33]} 30...
Kf8 {[%clk 0:00:22.4]} 31. f3 {[%clk 0:00:26]} 31... Ke8 {[%clk 0:00:22.3]} 32.
Kf1 {[%clk 0:00:26.3]} 32... a6 {[%clk 0:00:21.2]} 33. Bg1 {[%clk 0:00:26.3]}
33... Kd7 {[%clk 0:00:18.4]} 34. Nc2 {[%clk 0:00:23]} 34... Bf8 {[%clk
0:00:17.9]} 35. Nb4 {[%clk 0:00:23.1]} 35... Rc4 {[%clk 0:00:16.6]} 36. Nd3
{[%clk 0:00:23.6]} 36... Kc8 {[%clk 0:00:15.8]} 37. Nxe5 {[%clk 0:00:22]} 37...
Rcf4 {[%clk 0:00:12.9]} 38. Be3 {[%clk 0:00:17.4]} 38... R4f5 {[%clk 0:00:13.2]}
39. Ng4 {[%clk 0:00:17.9]} 39... Re6 {[%clk 0:00:13.4]} 40. Bf2 {[%clk
0:00:18.5]} 40... Be7 {[%clk 0:00:13.7]} 41. Ne3 {[%clk 0:00:18.4]} 41... Rb5
{[%clk 0:00:13.1]} 42. Nc4 {[%clk 0:00:18.3]} 42... d5 {[%clk 0:00:12.7]} 43.
Ne3 {[%clk 0:00:18.6]} 43... Bf6 {[%clk 0:00:12.5]} 44. a4 {[%clk 0:00:16.1]}
44... Rb3 {[%clk 0:00:12.4]} 45. Ng4 {[%clk 0:00:14.5]} 45... Bg7 {[%clk
0:00:11.8]} 46. Bc5 {[%clk 0:00:14.6]} 46... b6 {[%clk 0:00:11.8]} 47. Ba3
{[%clk 0:00:14.7]} 47... b5 {[%clk 0:00:12.4]} 48. axb5 {[%clk 0:00:14.2]} 48...
Nxb5 {[%clk 0:00:12.9]} 49. Bc5 {[%clk 0:00:11.7]} 49... Nc7 {[%clk 0:00:13]}
50. Ne3 {[%clk 0:00:10.2]} 50... Bf6 {[%clk 0:00:12.3]} 51. Nf5 {[%clk
0:00:10.4]} 51... Kb7 {[%clk 0:00:11.5]} 52. Bd4 {[%clk 0:00:09.5]} 52... Bd8
{[%clk 0:00:10.1]} 53. Bg7 {[%clk 0:00:07.8]} 53... Reb6 {[%clk 0:00:09.6]} 54.
Rb1 {[%clk 0:00:06.5]} 54... Bf6 {[%clk 0:00:08.4]} 55. Bxf6 {[%clk 0:00:06.3]}
55... Rxf6 {[%clk 0:00:09.3]} 56. Nd4 {[%clk 0:00:07]} 56... Rbb6 {[%clk
0:00:09.7]} 57. b4 {[%clk 0:00:07.6]} 57... Nb5 {[%clk 0:00:10]} 58. Nxb5 {[%clk
0:00:05.9]} 58... Rxb5 {[%clk 0:00:10.9]} 59. Rbd1 {[%clk 0:00:06.5]} 59... Rc6
{[%clk 0:00:11.1]} 60. Rxd5 {[%clk 0:00:06.2]} 60... Rxc3 {[%clk 0:00:11.4]} 61.
Rxb5+ {[%clk 0:00:06.3]} 61... axb5 {[%clk 0:00:11.7]} 62. Rd5 {[%clk 0:00:07]}
62... Kb6 {[%clk 0:00:12.2]} 63. Rxg5 {[%clk 0:00:07]} 63... Rc4 {[%clk
0:00:12.7]} 64. Rg4 {[%clk 0:00:07.7]} 64... Kc6 {[%clk 0:00:12.6]} 65. Ke2
{[%clk 0:00:07.6]} 65... Kd5 {[%clk 0:00:13.1]} 66. Ke3 {[%clk 0:00:07.9]} 66...
Rc3+ {[%clk 0:00:13.4]} 67. Kf4 {[%clk 0:00:07.6]} 67... Rc4+ {[%clk 0:00:13.2]}
68. Kg5 {[%clk 0:00:08.1]} 68... Rc2 {[%clk 0:00:13]} 69. Kxh4 {[%clk
0:00:08.1]} 69... f5 {[%clk 0:00:13.4]} 70. Rf4 {[%clk 0:00:05.9]} 70... Ke5
{[%clk 0:00:13.7]} 71. Kg3 {[%clk 0:00:05.1]} 71... Rc7 {[%clk 0:00:13.7]} 72.
Rh4 {[%clk 0:00:04.6]} 72... Rc3 {[%clk 0:00:12.7]} 73. Rh8 {[%clk 0:00:03.6]}
73... Rb3 {[%clk 0:00:12.8]} 74. Rb8 {[%clk 0:00:02.2]} 74... Rxb4 {[%clk
0:00:12.6]} 75. h4 {[%clk 0:00:02.8]} 75... Rb2 {[%clk 0:00:11.5]} 76. Kh3
{[%clk 0:00:03.1]} 76... b4 {[%clk 0:00:11.5]} 77. h5 {[%clk 0:00:03.5]} 77...
Kf6 {[%clk 0:00:11.3]} 78. g4 {[%clk 0:00:03.4]} 78... fxg4+ {[%clk 0:00:10.4]}
79. fxg4 {[%clk 0:00:04.3]} 79... Rb1 {[%clk 0:00:10.1]} 80. Rb6+ {[%clk
0:00:04.5]} 80... Kg5 {[%clk 0:00:09]} 81. Rb5+ {[%clk 0:00:05.2]} 81... Kf4
{[%clk 0:00:08.2]} 82. Kg2 {[%clk 0:00:04.1]} 82... Kxg4 {[%clk 0:00:07.9]} 83.
h6 {[%clk 0:00:04.7]} 83... Rb2+ {[%clk 0:00:07.6]} 84. Kf1 {[%clk 0:00:04.5]}
84... Rb1+ {[%clk 0:00:08.5]} 85. Ke2 {[%clk 0:00:04.7]} 85... Rh1 {[%clk
0:00:08.6]} 86. Rxb4+ {[%clk 0:00:04.7]} 86... Kg5 {[%clk 0:00:09.1]} 87. Rb6
{[%clk 0:00:05.1]} 87... Rxh6 {[%clk 0:00:08.4]} 88. Rxh6 {[%clk 0:00:06]} 88...
Kxh6 {[%clk 0:00:09.3]} 1/2-1/2